bitfinex-derivatives/quotes_ETHF0:USTF0_20260117
["timestamp","ask_amount","ask_price","bid_price","bid_amount"]
[1768689023822,0.13705285,3309.4,3308.8,0.00246592]
[1768689025325,0.13705285,3309.2,3308.8,0.00246592]
[1768689025519,0.13705285,3309.2,3308.0,0.97516938]
[1768689026226,0.13705285,3309.2,3307.7,1.88250977]
[1768689026523,0.97516938,3310.0,3307.7,0.00249937]
[1768689026524,1.11222223,3308.7,3307.7,0.00249937]
[1768689026716,0.13974493,3308.7,3307.7,0.00249937]
[1768689032335,1.11491431,3308.7,3307.7,0.00249937]
[1768689032536,0.13705285,3308.6,3307.7,0.00249937]
[1768689033333,1.11222223,3308.6,3307.7,0.00249937]
[1768689033544,0.13705285,3307.7,3305.6,0.1513]
[1768689033725,0.13599417,3306.9,3305.6,0.97516938]
[1768689034125,0.13599417,3306.9,3305.0,0.09171994]
[1768689034328,0.13599417,3306.6,3305.5,0.97516938]
[1768689034527,0.13599417,3306.6,3305.5,0.00322741]
[1768689034727,0.13599417,3306.6,3305.5,0.97839679]
[1768689035131,0.13599417,3306.6,3305.6,0.97516938]
[1768689035334,0.13599417,3307.9,3306.0,0.97516938]
[1768689035531,0.13599417,3307.7,3306.0,0.97516938]
[1768689035736,0.695,3308.1,3306.6,0.97516938]
[1768689035737,0.13599417,3307.4,3306.6,0.97516938]
[1768689035931,3.024,3308.2,3306.6,0.97516938]
[1768689036137,0.15385208,3308.7,3306.6,0.97516938]
[1768689036337,0.97516938,3308.1,3306.6,0.97883395]
[1768689036539,0.15385208,3308.7,3306.6,0.97883395]
[1768689036727,0.97516938,3308.0,3306.6,0.97883395]
[1768689037634,0.15385208,3308.7,3306.8,0.97516938]
[1768689037835,0.97516938,3308.4,3306.8,0.97516938]
[1768689038032,1.11116355,3308.5,3307.1,0.97516938]
[1768689038836,1.11116355,3308.5,3307.0,0.97516938]
[1768689039140,0.13599417,3308.5,3307.0,0.97516938]
[1768689039340,0.13599417,3308.5,3306.7,0.13478201]
[1768689039541,0.13599417,3308.5,3307.1,0.97516938]
[1768689041630,0.13599417,3308.5,3306.7,0.13478201]
[1768689041938,0.97516938,3308.2,3306.8,0.97516938]
[1768689044242,0.97516938,3308.4,3307.0,0.97516938]
[1768689045346,1.11116355,3308.5,3306.7,0.13478201]
[1768689045650,1.11116355,3308.5,3307.0,0.97516938]
[1768689047241,0.13599417,3308.4,3307.0,0.97516938]
[1768689052062,0.13599417,3308.4,3306.7,0.28603201]
[1768689052348,0.13599417,3308.4,3307.0,0.97516938]
[1768689058057,0.13599417,3308.4,3306.8,0.15125]
[1768689058257,0.13599417,3308.4,3307.0,0.97516938]
[1768689063154,0.13599417,3308.4,3307.0,1.12640938]
[1768689066146,0.00269208,3308.7,3307.1,0.14350507]
[1768689066350,0.00269208,3308.7,3307.3,0.97516938]
[1768689067566,0.00269208,3308.7,3307.4,0.15122]
[1768689067857,0.00269208,3308.7,3307.5,0.97516938]
[1768689068057,0.00269208,3308.7,3307.7,0.97516938]
[1768689068455,0.00269208,3308.7,3307.4,0.15122]
[1768689068656,0.00269208,3308.7,3307.6,0.97516938]
[1768689071954,0.00269208,3308.7,3307.8,0.97516938]
[1768689072657,0.00269208,3308.7,3308.0,0.97516938]
[1768689073356,0.13230463,3309.3,3308.0,0.97516938]
[1768689073554,1.93430856,3309.2,3307.8,0.97516938]
[1768689073756,0.95913918,3309.1,3307.8,0.97516938]
[1768689073956,0.95913918,3309.0,3307.8,0.97516938]
[1768689074166,0.00379395,3309.0,3307.8,0.97516938]
[1768689076066,0.00379395,3309.0,3308.0,0.97516938]
[1768689077575,0.00379395,3309.0,3308.2,0.97516938]
[1768689078661,0.13230463,3310.8,3308.0,0.97516938]
[1768689078867,6.324,3312.4,3308.0,0.97516938]
[1768689078868,0.97516938,3310.4,3309.0,0.15115]
[1768689079177,0.24131989,3311.9,3309.6,0.97516938]
[1768689079466,0.97516938,3311.1,3309.6,0.97516938]
[1768689079661,0.97516938,3311.1,3309.8,0.97516938]
[1768689079662,0.00270758,3311.1,3309.8,0.97516938]
[1768689080766,0.13501221,3311.1,3309.8,0.97516938]
[1768689082667,0.97516938,3310.9,3309.6,0.15328387]
[1768689083471,0.13501221,3311.1,3309.6,0.15328387]
[1768689083671,0.97516938,3310.9,3309.6,0.15328387]
[1768689085275,0.13501221,3311.1,3309.6,0.15328387]
[1768689094181,3.15801221,3311.1,3309.6,0.15328387]
[1768689094480,0.14741446,3311.0,3309.6,0.15328387]
[1768689107290,1.09984116,3310.9,3309.6,0.15328387]
[1768689107492,0.14741446,3310.9,3309.6,0.15328387]
[1768689108292,0.95483434,3310.8,3309.6,0.15328387]
[1768689108587,0.95483434,3310.7,3309.6,0.15328387]
[1768689108788,0.14741446,3310.9,3309.6,0.15328387]
[1768689108985,0.95483837,3310.8,3309.6,0.15328387]
[1768689109186,0.95483837,3310.7,3309.6,0.15328387]
[1768689109388,0.95501661,3310.6,3309.6,0.15328387]
[1768689109587,0.14741446,3310.9,3309.6,0.15328387]
[1768689109892,0.95501714,3310.8,3309.6,0.15328387]
[1768689110082,0.95501714,3310.7,3309.6,0.15328387]
[1768689110283,0.14741446,3310.9,3309.6,0.15328387]
[1768689110483,0.95501603,3310.8,3309.6,0.15328387]
[1768689110683,0.95501603,3310.7,3309.6,0.15328387]
[1768689110885,0.14741446,3310.9,3309.6,0.15328387]
[1768689111089,0.95501578,3310.8,3309.6,0.15328387]
[1768689111284,0.95501578,3310.7,3309.6,0.15328387]
[1768689111486,0.14741446,3310.9,3309.6,0.15328387]
[1768689111686,0.9550178,3310.8,3309.6,0.15328387]
[1768689111887,0.9550178,3310.7,3309.6,0.15328387]
[1768689112087,0.14741446,3310.9,3309.6,0.15328387]
[1768689112394,0.95501797,3310.8,3309.6,0.15328387]
[1768689112595,0.95501797,3310.7,3309.6,0.15328387]
[1768689112798,0.14741446,3310.9,3309.6,0.15328387]
[1768689112991,0.95502157,3310.8,3309.6,0.15328387]
[1768689113191,0.95502157,3310.7,3309.6,0.15328387]
[1768689113488,0.14741446,3310.9,3309.6,0.15328387]
[1768689113789,0.95502131,3310.8,3309.6,0.15328387]
[1768689113988,0.95502131,3310.7,3309.6,0.15328387]
[1768689114287,0.14741446,3310.9,3309.6,0.15328387]
[1768689114490,0.95502086,3310.8,3309.6,0.15328387]
[1768689114689,0.95502086,3310.7,3309.6,0.15328387]
[1768689114893,0.14741446,3310.9,3309.6,0.15328387]
[1768689115097,0.95503395,3310.8,3309.6,0.15328387]
[1768689115298,0.95503395,3310.7,3309.6,0.15328387]
[1768689115493,0.14741446,3310.9,3309.6,0.15328387]
[1768689115700,0.95503395,3310.8,3309.6,0.15328387]
[1768689115889,0.95503395,3310.7,3309.6,0.15328387]
[1768689116089,0.14741446,3310.9,3309.6,0.15328387]
[1768689116301,0.95503379,3310.8,3309.6,0.15328387]
[1768689116486,0.95503379,3310.7,3309.6,0.15328387]
[1768689116689,0.14741446,3310.9,3309.6,0.15328387]
[1768689116890,0.95503548,3310.8,3309.6,0.15328387]
[1768689117094,0.95503548,3310.7,3309.6,0.15328387]
[1768689117289,0.14741446,3310.9,3309.6,0.15328387]
[1768689117490,0.95503807,3310.8,3309.6,0.15328387]
[1768689117791,0.95503807,3310.7,3309.6,0.15328387]
[1768689117990,0.16484095,3310.8,3309.6,0.15328387]
[1768689118288,0.95503828,3310.7,3309.6,0.15328387]
[1768689118490,0.16484095,3310.8,3309.6,0.15328387]
[1768689118690,0.95504145,3310.7,3309.6,0.15328387]
[1768689118890,0.16484095,3310.8,3309.6,0.15328387]
[1768689119090,0.95504172,3310.7,3309.6,0.15328387]
[1768689119390,0.16484095,3310.8,3309.6,0.15328387]
[1768689119595,0.95485802,3310.7,3309.6,0.15328387]
[1768689119794,0.16484095,3310.8,3309.6,0.15328387]
[1768689119995,0.9548585,3310.7,3309.6,0.15328387]
[1768689120195,0.16484095,3310.8,3309.6,0.15328387]
[1768689120396,0.95486014,3310.7,3309.6,0.15328387]
[1768689120701,0.16484095,3310.8,3309.6,0.15328387]
[1768689120998,0.95486342,3310.7,3309.6,0.15328387]
[1768689121199,0.16484095,3310.8,3309.6,0.15328387]
[1768689121391,0.95487243,3310.7,3309.6,0.15328387]
[1768689121693,0.16484095,3310.8,3309.6,0.15328387]
[1768689121893,0.95487231,3310.7,3309.6,0.15328387]
[1768689122096,0.16484095,3310.8,3309.6,0.15328387]
[1768689122297,0.95487302,3310.7,3309.6,0.15328387]
[1768689122501,0.16484095,3310.8,3309.6,0.15328387]
[1768689122697,0.95487558,3310.7,3309.6,0.15328387]
[1768689123003,0.16484095,3310.8,3309.6,0.15328387]
[1768689123200,0.95487807,3310.7,3309.6,0.15328387]
[1768689123503,0.16484095,3310.8,3309.6,0.15328387]
[1768689123701,0.954883,3310.7,3309.6,0.15328387]
[1768689124002,0.16484095,3310.8,3309.6,0.15328387]
[1768689136818,0.16484095,3310.8,3309.6,0.00216387]
[1768689138118,0.16484095,3310.4,3309.6,0.00216387]
[1768689141021,0.16484095,3310.4,3308.6,0.16237113]
[1768689141518,0.16484095,3310.4,3308.5,0.15117]
[1768689141913,0.17611891,3310.2,3308.5,0.15465614]
[1768689142418,0.17611891,3310.0,3308.5,0.15465614]
[1768689142623,0.17611891,3310.0,3308.5,0.00348614]
[1768689142822,3.19911891,3310.0,3308.5,0.00348614]
[1768689143124,0.17611891,3309.9,3308.5,0.00348614]
[1768689147327,0.17611891,3309.8,3308.5,0.97843878]
[1768689149026,0.17611891,3309.8,3308.5,0.00348614]
[1768689149223,0.17611891,3309.8,3308.5,0.97843878]
[1768689153126,0.17611891,3310.2,3309.0,0.97495264]
[1768689153431,4.45911891,3310.2,3309.0,0.97495264]
[1768689153820,0.17688136,3310.1,3309.0,0.97495264]
[1768689154221,0.17688136,3310.1,3308.5,0.00348614]
[1768689154423,0.17688136,3310.1,3308.8,0.97495264]
[1768689160531,0.17688136,3310.1,3308.5,0.00348614]
[1768689160733,0.97495264,3310.0,3308.7,0.97495264]
[1768689164032,1.151834,3310.0,3308.7,0.97495264]
[1768689168235,0.17688136,3310.0,3308.7,0.97495264]
[1768689171037,0.95408275,3309.9,3308.7,0.97495264]
[1768689171238,0.17688136,3310.0,3308.7,0.97495264]
[1768689171544,0.95408275,3309.9,3308.7,0.97495264]
[1768689171746,0.17688136,3310.0,3308.7,0.97495264]
[1768689172046,0.95408275,3309.9,3308.7,0.97495264]
[1768689172342,0.17688136,3310.0,3308.7,0.97495264]
[1768689172543,0.95417958,3309.9,3308.7,0.97495264]
[1768689172745,0.17688136,3310.0,3308.7,0.97495264]
[1768689173044,0.95417958,3309.9,3308.7,0.97495264]
[1768689173235,0.17688136,3310.0,3308.7,0.97495264]
[1768689173436,0.9541816,3309.9,3308.7,0.97495264]
[1768689173635,0.17688136,3310.0,3308.7,0.97495264]
[1768689173830,0.9541816,3309.9,3308.7,0.97495264]
[1768689174044,0.17688136,3310.0,3308.7,0.97495264]
[1768689174246,0.95418487,3309.9,3308.7,0.97495264]
[1768689174432,1.151834,3310.0,3308.7,0.97495264]
[1768689174632,0.9541856,3309.9,3308.7,0.97495264]
[1768689174833,1.151834,3310.0,3308.7,0.97495264]
[1768689175031,0.95418461,3309.9,3308.7,0.97495264]
[1768689175252,1.151834,3310.0,3308.7,0.97495264]
[1768689175545,0.95428401,3309.9,3308.7,0.97495264]
[1768689175737,1.151834,3310.0,3308.7,0.97495264]
[1768689175939,0.95428243,3309.9,3308.7,0.97495264]
[1768689176237,1.151834,3310.0,3308.7,0.97495264]
[1768689176438,0.95429364,3309.9,3308.7,0.97495264]
[1768689176637,1.151834,3310.0,3308.7,0.97495264]
[1768689176837,0.95429363,3309.9,3308.7,0.97495264]
[1768689177137,1.151834,3310.0,3308.7,0.97495264]
[1768689177437,0.95430595,3309.9,3308.7,0.97495264]
[1768689177636,1.151834,3310.0,3308.7,0.97495264]
[1768689177838,0.95430595,3309.9,3308.7,0.97495264]
[1768689178044,1.151834,3310.0,3308.7,0.97495264]
[1768689178241,0.95432049,3309.9,3308.7,0.97495264]
[1768689178442,1.151834,3310.0,3308.7,0.97495264]
[1768689178644,0.95432049,3309.9,3308.7,0.97495264]
[1768689178856,1.151834,3310.0,3308.7,0.97495264]
[1768689179155,0.95432054,3309.9,3308.7,0.97495264]
[1768689179339,1.151834,3310.0,3308.7,0.97495264]
[1768689179638,0.94846813,3309.9,3308.7,0.97495264]
[1768689179838,1.151834,3310.0,3308.7,0.97495264]
[1768689180047,0.94846818,3309.9,3308.7,0.97495264]
[1768689180250,1.151834,3310.0,3308.7,0.97495264]
[1768689180455,0.94848916,3309.9,3308.7,0.97495264]
[1768689180639,1.151834,3310.0,3308.7,0.97495264]
[1768689180840,0.94848916,3309.9,3308.7,0.97495264]
[1768689181145,1.151834,3310.0,3308.7,0.97495264]
[1768689181338,0.94851711,3309.9,3308.7,0.97495264]
[1768689181539,1.151834,3310.0,3308.7,0.97495264]
[1768689181839,0.94851984,3309.9,3308.7,0.97495264]
[1768689182039,1.151834,3310.0,3308.7,0.97495264]
[1768689182358,0.94855993,3309.9,3308.7,0.97495264]
[1768689182540,1.151834,3310.0,3308.7,0.97495264]
[1768689182740,0.94855758,3309.9,3308.7,0.97495264]
[1768689182943,1.151834,3310.0,3308.7,0.97495264]
[1768689183147,0.94855758,3309.9,3308.7,0.97495264]
[1768689183343,1.151834,3310.0,3308.7,0.97495264]
[1768689183543,0.94864323,3309.9,3308.7,0.97495264]
[1768689183842,1.151834,3310.0,3308.7,0.97495264]
[1768689184042,0.94864323,3309.9,3308.7,0.97495264]
[1768689184350,1.151834,3310.0,3308.7,0.97495264]
[1768689184552,0.94863867,3309.9,3308.7,0.97495264]
[1768689184748,1.151834,3310.0,3308.7,0.97495264]
[1768689184947,0.94863867,3309.9,3308.7,0.97495264]
[1768689185159,1.151834,3310.0,3308.7,0.97495264]
[1768689185347,0.94863483,3309.9,3308.7,0.97495264]
[1768689185647,1.151834,3310.0,3308.7,0.97495264]
[1768689185945,0.94863483,3309.9,3308.7,0.97495264]
[1768689186149,1.151834,3310.0,3308.7,0.97495264]
[1768689186344,0.94863247,3309.9,3308.7,0.97495264]
[1768689186546,1.151834,3310.0,3308.7,0.97495264]
[1768689186741,0.94863247,3309.9,3308.7,0.97495264]
[1768689187045,1.151834,3310.0,3308.7,0.97495264]
[1768689187240,0.948632,3309.9,3308.7,0.97495264]
[1768689187445,1.151834,3310.0,3308.7,0.97495264]
[1768689187640,0.94862961,3309.9,3308.7,0.97495264]
[1768689187853,1.151834,3310.0,3308.7,0.97495264]
[1768689188154,0.94862961,3309.9,3308.7,0.97495264]
[1768689188353,0.17688136,3310.0,3308.7,0.97495264]
[1768689188651,0.94862853,3309.9,3308.7,0.97495264]
[1768689188850,0.17688136,3310.0,3308.7,0.97495264]
[1768689189056,0.94862637,3309.9,3308.7,0.97495264]
[1768689189253,0.17688136,3310.0,3308.7,0.97495264]
[1768689189453,0.94862477,3309.9,3308.7,0.97495264]
[1768689189753,0.17688136,3310.0,3308.7,0.97495264]
[1768689189944,0.94862477,3309.9,3308.7,0.97495264]
[1768689190145,0.17688136,3310.0,3308.7,0.97495264]
[1768689190349,0.94862326,3309.9,3308.7,0.97495264]
[1768689190646,0.17688136,3310.0,3308.7,0.97495264]
[1768689190840,0.94862326,3309.9,3308.7,0.97495264]
[1768689191046,0.17688136,3310.0,3308.7,0.97495264]
[1768689191248,0.94862246,3309.9,3308.7,0.97495264]
[1768689191449,0.17688136,3310.0,3308.7,0.97495264]
[1768689191746,0.94862191,3309.9,3308.7,0.97495264]
[1768689191947,0.17688136,3310.0,3308.7,0.97495264]
[1768689192153,0.94862307,3309.9,3308.7,0.97495264]
[1768689192353,0.17688136,3310.0,3308.7,0.97495264]
[1768689192658,0.94863521,3309.9,3308.7,0.97495264]
[1768689192852,0.17688136,3310.0,3308.7,0.97495264]
[1768689193053,0.94863517,3309.9,3308.7,0.97495264]
[1768689193353,0.17688136,3310.0,3308.7,0.97495264]
[1768689193552,0.94863452,3309.9,3308.7,0.97495264]
[1768689193853,0.17688136,3310.0,3308.7,0.97495264]
[1768689194045,0.94862908,3309.9,3308.7,0.97495264]
[1768689194247,0.17688136,3310.0,3308.7,0.97495264]
[1768689194452,0.94862864,3309.9,3308.7,0.97495264]
[1768689194650,0.17688136,3310.0,3308.7,0.97495264]
[1768689194856,0.94862864,3309.9,3308.7,0.97495264]
[1768689195059,0.17688136,3310.0,3308.7,0.97495264]
[1768689195247,0.94862834,3309.9,3308.7,0.97495264]
[1768689195448,0.17688136,3310.0,3308.7,0.97495264]
[1768689195756,0.94862845,3309.9,3308.7,0.97495264]
[1768689195953,0.17688136,3310.0,3308.7,0.97495264]
[1768689196150,0.94862845,3309.9,3308.7,0.97495264]
[1768689196351,0.17688136,3310.0,3308.7,0.97495264]
[1768689196649,0.94862673,3309.9,3308.7,0.97495264]
[1768689196851,0.17688136,3310.0,3308.7,0.97495264]
[1768689197051,0.94862744,3309.9,3308.7,0.97495264]
[1768689197254,0.17688136,3310.0,3308.7,0.97495264]
[1768689197454,0.94862733,3309.9,3308.7,0.97495264]
[1768689197655,0.17688136,3310.0,3308.7,0.97495264]
[1768689197953,0.94862739,3309.9,3308.7,0.97495264]
[1768689198156,0.17688136,3310.0,3308.7,0.97495264]
[1768689198360,0.94862753,3309.9,3308.7,0.97495264]
[1768689198658,0.17688136,3310.0,3308.7,0.97495264]
[1768689198853,0.94862753,3309.9,3308.7,0.97495264]
[1768689199054,0.17688136,3310.0,3308.7,0.97495264]
[1768689199253,0.94862705,3309.9,3308.7,0.97495264]
[1768689199453,0.17688136,3310.0,3308.7,0.97495264]
[1768689199660,0.94862726,3309.9,3308.7,0.97495264]
[1768689199859,0.17688136,3310.0,3308.7,0.97495264]
[1768689200064,0.94862825,3309.9,3308.7,0.97495264]
[1768689200360,0.17688136,3310.0,3308.7,0.97495264]
[1768689200550,0.94862805,3309.9,3308.7,0.97495264]
[1768689200752,0.17688136,3310.0,3308.7,0.97495264]
[1768689200950,0.94862805,3309.9,3308.7,0.97495264]
[1768689201156,0.17688136,3310.0,3308.7,0.97495264]
[1768689201446,0.94862819,3309.9,3308.7,0.97495264]
[1768689201646,0.17688136,3310.0,3308.7,0.97495264]
[1768689201846,0.94862819,3309.9,3308.7,0.97495264]
[1768689202046,0.17688136,3310.0,3308.7,0.97495264]
[1768689202263,0.94862876,3309.9,3308.7,0.97495264]
[1768689202456,0.17688136,3310.0,3308.7,0.97495264]
[1768689202651,0.94862941,3309.9,3308.7,0.97495264]
[1768689202853,0.17688136,3310.0,3308.7,0.97495264]
[1768689203053,0.94862941,3309.9,3308.7,0.97495264]
[1768689203352,0.17688136,3310.0,3308.7,0.97495264]
[1768689203551,0.94862969,3309.9,3308.7,0.97495264]
[1768689203759,0.17688136,3310.0,3308.7,0.97495264]
[1768689203960,0.94862969,3309.9,3308.7,0.97495264]
[1768689204261,0.17688136,3310.0,3308.7,0.97495264]
[1768689204562,0.94863043,3309.9,3308.7,0.97495264]
[1768689204758,0.17688136,3310.0,3308.7,0.97495264]
[1768689204959,0.9486297,3309.9,3308.7,0.97495264]
[1768689205161,0.17688136,3310.0,3308.7,0.97495264]
[1768689205357,0.94863176,3309.9,3308.7,0.97495264]
[1768689205558,0.17688136,3310.0,3308.7,0.97495264]
[1768689205757,0.94863249,3309.9,3308.7,0.97495264]
[1768689205956,0.17688136,3310.0,3308.7,0.97495264]
[1768689206165,0.94863176,3309.9,3308.7,0.97495264]
[1768689206462,0.17688136,3310.0,3308.7,0.97495264]
[1768689206663,0.94863319,3309.9,3308.7,0.97495264]
[1768689206864,0.17688136,3310.0,3308.7,0.97495264]
[1768689207160,0.94863319,3309.9,3308.7,0.97495264]
[1768689207355,0.17688136,3310.0,3308.5,0.00348614]
[1768689207553,0.94863651,3309.9,3308.5,0.00348614]
[1768689207855,0.17688136,3310.0,3308.5,0.00348614]
[1768689208053,0.94863651,3309.9,3308.5,0.00348614]
[1768689208261,0.17688136,3310.0,3308.5,0.00348614]
[1768689208455,0.9486398,3309.9,3308.5,0.00348614]
[1768689208654,0.17688136,3310.0,3308.5,0.00348614]
[1768689208855,0.9486398,3309.9,3308.5,0.00348614]
[1768689209155,0.17688136,3310.0,3308.5,0.00348614]
[1768689209354,0.94864489,3309.9,3308.5,0.00348614]
[1768689209566,0.17688136,3310.0,3308.5,0.00348614]
[1768689211365,0.94614345,3309.9,3308.5,0.00348614]
[1768689211665,0.17688136,3310.0,3308.5,0.00348614]
[1768689211865,0.94614345,3309.9,3308.5,0.00348614]
[1768689212067,0.17688136,3310.0,3308.5,0.00348614]
[1768689212267,0.94614341,3309.9,3308.5,0.00348614]
[1768689212469,0.17688136,3310.0,3308.5,0.00348614]
[1768689212767,0.94615408,3309.9,3308.5,0.00348614]
[1768689212970,0.17688136,3310.0,3308.5,0.00348614]
[1768689269330,0.17688136,3310.0,3308.8,0.9747663]
[1768689280445,0.17688136,3310.0,3308.5,0.00348614]
[1768689280743,0.17688136,3310.0,3308.7,0.9747663]
[1768689300860,1.15164766,3310.0,3308.7,0.9747663]
[1768689301062,0.19361651,3309.9,3308.5,0.00348614]
[1768689301257,0.9747663,3309.8,3308.5,0.97825244]
[1768689302769,1.16838281,3309.8,3308.5,0.97825244]
[1768689303275,1.16838281,3309.8,3308.5,0.00348614]
[1768689303473,0.19361651,3309.7,3308.5,0.00348614]
[1768689305877,0.19361651,3309.6,3308.5,0.00348614]
[1768689306268,0.19361651,3309.0,3308.5,0.00348614]
[1768689306570,0.19361651,3309.0,3307.7,0.9747663]
[1768689306973,0.19361651,3309.0,3307.9,0.9747663]
[1768689307372,0.19361651,3309.0,3307.9,0.97693114]
[1768689308274,0.19361651,3309.0,3308.0,0.9747663]
[1768689310865,0.19361651,3309.0,3307.9,0.00216484]
[1768689344922,0.19361651,3309.0,3307.3,1.39453882]
[1768689345911,0.19361651,3309.0,3307.3,1.39802668]
[1768689352135,0.19361651,3309.0,3307.3,0.00348786]
[1768689361741,1.87361651,3309.0,3307.3,0.00348786]
[1768689362042,0.20153797,3308.9,3307.3,0.00348786]
[1768689363042,0.20153797,3308.7,3307.3,0.00348786]
[1768689363246,0.2042393,3308.7,3307.3,0.00348786]
[1768689371951,0.20153797,3308.1,3306.5,5.40065851]
[1768689372157,0.20153797,3308.1,3306.3,0.21136366]
[1768689372956,0.20153797,3308.1,3306.3,0.21407511]
[1768689373557,0.20153797,3308.1,3306.4,0.15127]
[1768689373966,0.20153797,3308.1,3306.4,0.36263366]
[1768689381155,0.20153797,3308.1,3306.4,0.15127]
[1768689384763,0.20073142,3307.9,3306.3,0.00271145]
[1768689391472,0.97624368,3307.6,3306.3,0.00271145]
[1768689395768,0.20073142,3307.9,3306.3,0.00271145]
[1768689395962,1.19239267,3307.7,3306.3,0.00271145]
[1768689396266,1.19239267,3307.7,3306.3,0.97895513]
[1768689396872,0.21614899,3307.7,3306.3,0.97895513]
[1768689397061,0.21614899,3307.6,3306.3,0.00271145]
[1768689399562,1.19239267,3307.5,3306.3,0.00271145]
[1768689401567,0.21614899,3307.4,3306.3,0.00271145]
[1768689401771,0.21614899,3307.2,3306.3,0.00271145]
[1768689402968,1.19239267,3307.1,3306.3,0.00271145]
[1768689403476,0.21614899,3307.0,3305.7,0.97624368]
[1768689404278,0.21614899,3307.0,3305.7,0.98008587]
[1768689411281,0.21614899,3307.0,3305.7,0.00384219]
[1768689411577,0.21614899,3307.0,3305.7,0.98008587]
[1768689413670,0.21614899,3307.0,3305.7,0.00384219]
[1768689413872,0.21614899,3307.0,3305.7,0.98008587]
[1768689418491,0.21614899,3307.0,3305.7,0.00384219]
[1768689418690,0.21614899,3307.0,3305.7,0.98008587]
[1768689431299,1.19239267,3307.0,3305.7,0.00384219]
[1768689431891,0.21614899,3307.0,3305.7,0.00384219]
[1768689432091,0.21614899,3307.0,3305.7,0.98008587]
[1768689433487,0.2120739,3306.7,3305.0,5.49237845]
[1768689433690,1.18831758,3306.5,3304.7,1.15090792]
[1768689433894,1.16452045,3306.4,3304.9,1.15304916]
[1768689434095,0.2120739,3306.4,3304.9,1.15304916]
[1768689434496,0.2120739,3306.4,3304.9,1.15646921]
[1768689434694,0.97624368,3306.2,3304.9,1.15646921]
[1768689434894,0.97923724,3306.2,3304.9,1.15646921]
[1768689435196,0.2120739,3306.1,3304.9,0.18022553]
[1768689435497,0.2120739,3305.9,3304.9,0.18022553]
[1768689436201,0.97923724,3306.2,3304.9,0.18022553]
[1768689436390,1.19131114,3306.2,3304.9,0.18022553]
[1768689440101,0.00299356,3306.2,3304.9,0.18022553]
[1768689441306,0.97624368,3306.7,3305.1,1.19288522]
[1768689441716,0.97624368,3306.4,3305.1,1.19288522]
[1768689442213,0.98002285,3306.4,3305.1,0.21664154]
[1768689443314,0.97624368,3306.3,3305.0,0.97624368]
[1768689443514,0.97624368,3306.3,3305.2,1.293]
[1768689443713,0.97624368,3306.3,3305.0,2.66224368]
[1768689443921,0.97624368,3306.3,3305.0,5.68824368]
[1768689444110,0.00306401,3306.3,3305.0,5.68824368]
[1768689444716,0.22833098,3306.2,3304.9,0.18022553]
[1768689446408,1.20457466,3306.0,3304.9,0.18022553]
[1768689450223,0.22833098,3305.9,3304.9,0.18022553]
[1768689463333,0.22833098,3305.9,3304.8,0.17357274]
[1768689464331,0.22833098,3305.9,3304.8,0.17658354]
[1768689468933,0.22570739,3306.3,3304.8,0.17658354]
[1768689469126,1.18973076,3306.2,3304.8,0.17658354]
[1768689469326,0.96708738,3306.1,3304.8,0.17658354]
[1768689469629,0.22264338,3306.2,3304.8,0.17658354]
[1768689476635,0.96753727,3306.1,3304.4,0.05162447]
[1768689476839,0.97710452,3304.9,3303.6,0.05332835]
[1768689477137,0.15133,3305.2,3303.6,0.05332835]
[1768689477443,0.96591926,3305.1,3303.6,0.05332835]
[1768689477735,0.47333042,3305.0,3303.6,0.05576615]
[1768689477936,1.43924968,3304.9,3303.6,0.05576615]
[1768689478135,0.47333042,3304.8,3303.6,0.05576615]
[1768689478438,0.47333042,3304.7,3303.6,0.05576615]
[1768689478638,0.47333042,3304.6,3303.6,0.05576615]
[1768689478830,0.47333042,3304.5,3303.6,0.05576615]
[1768689479136,0.47333042,3304.4,3303.6,0.05576615]
[1768689479339,0.15244342,3305.2,3303.6,0.26395976]
[1768689480534,0.00111342,3305.2,3303.6,0.26395976]
[1768689480735,0.00111342,3305.2,3303.7,0.20819361]
[1768689481042,0.97710452,3305.4,3303.7,0.20819361]
[1768689481637,0.97710452,3305.5,3303.7,0.20819361]
[1768689482040,0.97710452,3304.7,3303.6,0.05576615]
[1768689484230,9.02510452,3306.0,3301.8,0.17837585]
[1768689484231,1.61577882,3304.6,3301.8,0.17837585]
[1768689484431,1.61577882,3304.6,3298.2,0.97710452]
[1768689484432,1.95420904,3302.0,3298.2,0.97710452]
[1768689484632,4.71,3301.9,3299.4,0.20819361]
[1768689484838,0.391,3302.9,3299.6,0.20819361]
[1768689485051,0.391,3302.9,3299.2,3.028]
[1768689485052,3.028,3303.6,3300.2,0.97710452]
[1768689485232,0.97710452,3302.9,3300.3,0.20819361]
[1768689485433,3.03087225,3303.6,3300.3,0.20819361]
[1768689485636,0.96614184,3303.5,3300.4,0.20819361]
[1768689485832,0.96614184,3303.4,3300.6,0.20819361]
[1768689486038,3.03087225,3303.6,3300.7,0.20819361]
[1768689486232,0.96625025,3303.5,3300.9,0.20819361]
[1768689486434,0.00287225,3303.6,3300.9,0.20819361]
[1768689486644,0.96503116,3303.5,3300.9,0.20819361]
[1768689486943,0.00287225,3303.6,3301.2,0.20819361]
[1768689487339,0.00287225,3303.6,3301.4,0.20819361]
[1768689487547,4.28187225,3304.1,3301.4,0.20819361]
[1768689487745,0.96416825,3304.0,3301.4,0.20819361]
[1768689488044,0.96416825,3303.9,3301.4,0.20819361]
[1768689488241,0.96416825,3303.8,3301.4,0.20819361]
[1768689488438,0.00233089,3303.8,3301.4,0.20819361]
[1768689488846,0.00233089,3303.8,3301.4,1.89924412]
[1768689489140,0.00233089,3303.8,3301.5,0.20819361]
[1768689489542,0.00233089,3303.8,3301.8,0.20819361]
[1768689490151,0.00233089,3303.8,3302.0,0.20819361]
[1768689490635,0.00233089,3303.8,3302.2,0.20819361]
[1768689491040,0.00233089,3303.8,3302.3,0.20819361]
[1768689491741,0.00233089,3303.8,3302.4,0.20819361]
[1768689492450,0.00233089,3303.8,3302.4,1.89924412]
[1768689492748,0.00233089,3303.8,3302.5,0.20819361]
[1768689493750,0.00233089,3303.8,3302.6,0.20819361]
[1768689493948,0.00233089,3303.8,3302.6,0.21162074]
[1768689494445,0.00233089,3303.8,3303.0,1.89924412]
[1768689494745,0.00233089,3303.8,3303.1,1.89924412]
[1768689494948,4.712,3304.9,3303.2,0.20819361]
[1768689495150,0.4472928,3304.8,3303.2,0.20819361]
[1768689495338,4.712,3304.9,3303.2,0.20819361]
[1768689495543,0.44727753,3304.8,3303.2,0.20819361]
[1768689495749,4.712,3304.9,3303.2,0.20819361]
[1768689495955,0.44727823,3304.8,3303.2,0.20819361]
[1768689496248,3.03262941,3304.9,3303.2,0.20819361]
[1768689496448,0.44736179,3304.8,3303.2,0.20819361]
[1768689496643,3.03262941,3304.9,3303.2,0.20819361]
[1768689496843,0.00362941,3304.9,3303.4,0.20819361]
[1768689497244,0.00362941,3304.9,3303.5,1.89924412]
[1768689497550,0.00362941,3304.9,3303.6,0.20819361]
[1768689499351,0.00362941,3304.9,3303.7,1.89924412]
[1768689499552,0.00362941,3304.9,3303.7,0.20819361]
[1768689499847,0.00362941,3304.9,3303.7,1.89924412]
[1768689500044,0.00362941,3304.9,3302.6,0.00342713]